fUST/lending_fUST_20260110
["ID","MTS","AMOUNT","RATE_DAILY","PERIOD"]
[401231191,1768057444449,-300.0,0.00019999,2]
[401231192,1768057444469,-300.0,0.00019999,2]
[401231193,1768057444489,-1200.0,0.00019999,2]
[401231194,1768057444511,-20000.0,0.0002,2]
[401231195,1768057444532,-273.827,0.0002,2]
[401231196,1768057444552,-184.229,0.0002,2]
[401231197,1768057444575,-300.0,0.00020399,2]
[401231198,1768057444596,-300.0,0.00020399,2]
[401231199,1768057444742,-300.0,0.00020399,2]
[401231200,1768057444767,-300.0,0.00020399,2]
[401231201,1768057444791,-300.0,0.00020399,2]
[401231202,1768057444814,-300.0,0.00020399,2]
[401231203,1768057444839,-300.0,0.00020399,2]
[401231204,1768057444863,-300.0,0.00020399,2]
[401231205,1768057444886,-300.0,0.00020399,2]
[401231206,1768057444909,-300.0,0.00020399,2]
[401231207,1768057444932,-300.0,0.00020399,2]
[401231208,1768057444955,-300.0,0.00020399,2]
[401231209,1768057444977,-300.0,0.00020399,2]
[401231210,1768057445000,-300.0,0.00020399,2]
[401231211,1768057445022,-300.0,0.00020399,2]
[401231212,1768057445045,-600.0,0.00020806,2]
[401231213,1768057445066,-4073.747746,0.00021,2]
[401231214,1768057445090,-151.0,0.000214,4]
[401231215,1768057445112,-151.0,0.000214,3]
[401231216,1768057445140,-151.0,0.000214,4]
[401231217,1768057445160,-151.0,0.000214,3]
[401231218,1768057445183,-356.45,0.00021405,3]
[401231219,1768057445208,-178.23,0.00021405,3]
[401231220,1768057445228,-534.71,0.00021405,3]
[401231221,1768057445250,-500.0,0.00021413,2]
[401231222,1768057445271,-500.0,0.00021414,2]
[401231223,1768057445294,-500.0,0.00021414,2]
[401231224,1768057445317,-500.0,0.00021414,2]
[401231225,1768057445341,-500.0,0.00021414,2]
[401231226,1768057445361,-404.77880346,0.00021414,2]
[401231227,1768057445381,-500.0,0.00021414,2]
[401231228,1768057445402,-500.0,0.00021414,2]
[401231229,1768057445422,-500.0,0.00021414,2]
[401231230,1768057445444,-500.0,0.00021414,2]
[401231231,1768057445466,-500.0,0.00021414,2]
[401231232,1768057445488,-500.0,0.00021414,2]
[401231233,1768057445513,-500.0,0.00021414,2]
[401231234,1768057445536,-400.0,0.00021414,2]
[401231235,1768057445557,-502.05327324,0.00021414,2]
[401231236,1768057445578,-240.78204854,0.00021414,2]
[401231237,1768057445600,-500.0,0.00021414,2]
[401231238,1768057445622,-500.0,0.00021414,2]
[401231239,1768057445644,-500.0,0.00021414,2]
[401231240,1768057445665,-500.0,0.00021414,2]
[401231241,1768057445686,-500.0,0.00021414,2]
[401231242,1768057445707,-500.0,0.00021414,2]
[401231243,1768057445732,-500.0,0.00021414,2]
[401231244,1768057445757,-500.0,0.00021414,2]
[401231245,1768057445778,-500.0,0.00021414,2]
[401231246,1768057445800,-500.0,0.00021414,2]
[401231247,1768057445826,-500.0,0.00021414,2]
[401231248,1768057445849,-500.0,0.00021414,2]
[401231249,1768057445872,-500.0,0.00021414,2]
[401231250,1768057445896,-500.0,0.00021414,2]
[401231251,1768057445918,-500.0,0.00021414,2]
[401231252,1768057445940,-500.0,0.00021414,2]
[401231253,1768057445963,-500.0,0.00021414,2]
[401231254,1768057445983,-500.0,0.00021414,2]
[401231255,1768057446007,-500.0,0.00021414,2]
[401231256,1768057446029,-500.0,0.00021414,2]
[401231257,1768057446052,-635.59222243,0.00021414,2]
[401231258,1768057446075,-500.0,0.00021414,2]
[401231259,1768057446097,-500.0,0.00021414,2]
[401231260,1768057446120,-500.0,0.00021414,2]
[401231261,1768057446145,-500.0,0.00021414,2]
[401231262,1768057446169,-500.0,0.00021414,2]
[401231263,1768057446194,-500.0,0.00021414,2]
[401231264,1768057446217,-500.0,0.00021414,2]
[401231265,1768057446252,-500.0,0.00021414,2]
[401231266,1768057446275,-366.21623812,0.00021414,2]
[401231267,1768057446299,-500.0,0.00021414,2]
[401231268,1768057446320,-500.0,0.00021414,2]
[401231269,1768057446341,-500.0,0.00021414,2]
[401231270,1768057446362,-500.0,0.00021414,2]
[401231271,1768057446382,-500.0,0.00021414,2]
[401231272,1768057446403,-500.0,0.00021414,2]
[401231273,1768057446424,-500.0,0.00021414,2]
[401231274,1768057446446,-500.0,0.00021414,2]
[401231275,1768057446466,-500.0,0.00021414,2]
[401231276,1768057446487,-500.0,0.00021414,2]
[401231277,1768057446507,-500.0,0.00021414,2]
[401231278,1768057446528,-500.0,0.00021414,2]
[401231279,1768057446549,-500.0,0.00021414,2]
[401231280,1768057446570,-500.0,0.00021414,2]
[401231281,1768057446590,-500.0,0.00021414,2]
[401231282,1768057446612,-500.0,0.00021414,2]
[401231283,1768057446632,-500.0,0.00021414,2]
[401231284,1768057446653,-500.0,0.00021414,2]
[401231285,1768057446674,-500.0,0.00021414,2]
[401231286,1768057446695,-500.0,0.00021414,2]
[401231287,1768057446718,-500.0,0.00021414,2]
[401231288,1768057446741,-500.0,0.00021414,2]
[401231289,1768057446763,-500.0,0.00021414,2]
[401231290,1768057446785,-500.0,0.00021414,2]
[401231291,1768057446809,-500.0,0.00021414,2]
[401231292,1768057446832,-500.0,0.00021414,2]
[401231293,1768057446856,-500.0,0.00021414,2]
[401231294,1768057446879,-500.0,0.00021414,2]
[401231295,1768057446900,-500.0,0.00021414,2]
[401231296,1768057446924,-500.0,0.00021414,2]
[401231297,1768057446948,-500.0,0.00021414,2]
[401231298,1768057446969,-500.0,0.00021414,2]
[401231299,1768057446992,-500.0,0.00021414,2]
[401231300,1768057447025,-500.0,0.00021414,2]
[401231301,1768057447054,-500.0,0.00021414,2]
[401231302,1768057447077,-500.0,0.00021414,2]
[401231303,1768057447103,-500.0,0.00021414,2]
[401231304,1768057447130,-500.0,0.00021414,2]
[401231305,1768057447153,-500.0,0.00021414,2]
[401231306,1768057447178,-500.0,0.00021414,2]
[401231307,1768057447293,-460.37300264,0.00021414,2]
[401231308,1768057447316,-500.0,0.00021414,2]
[401231309,1768057447339,-500.0,0.00021414,2]
[401231310,1768057447362,-500.0,0.00021414,2]
[401231311,1768057447385,-500.0,0.00021414,2]
[401231312,1768057447408,-500.0,0.00021414,2]
[401231313,1768057447430,-500.0,0.00021414,2]
[401231314,1768057447452,-500.0,0.00021414,2]
[401231315,1768057447475,-500.0,0.00021414,2]
[401231316,1768057447496,-500.0,0.00021414,2]
[401231317,1768057447517,-500.0,0.00021414,2]
[401231318,1768057447540,-500.0,0.00021414,2]
[401231319,1768057447562,-500.0,0.00021414,2]
[401231320,1768057447583,-500.0,0.00021414,2]
[401231321,1768057447605,-500.0,0.00021414,2]
[401231322,1768057447626,-500.0,0.00021414,2]
[401231323,1768057447648,-500.0,0.00021414,2]
[401231324,1768057447671,-500.0,0.00021414,2]
[401231325,1768057447692,-500.0,0.00021414,2]
[401231326,1768057447716,-500.0,0.00021414,2]
[401231327,1768057447739,-500.0,0.00021414,2]
[401231328,1768057447763,-500.0,0.00021414,2]
[401231329,1768057447786,-381.75808484,0.00021414,2]
[401231330,1768057447808,-500.0,0.00021414,2]
[401231331,1768057447831,-500.0,0.00021414,2]
[401231332,1768057447854,-500.0,0.00021414,2]
[401231333,1768057447876,-500.0,0.00021414,2]
[401231334,1768057447899,-500.0,0.00021414,2]
[401231335,1768057447922,-500.0,0.00021414,2]
[401231336,1768057447944,-500.0,0.00021414,2]
[401231337,1768057447967,-500.0,0.00021414,2]
[401231338,1768057447990,-500.0,0.00021414,2]
[401231339,1768057448012,-500.0,0.00021414,2]
[401231340,1768057448039,-500.0,0.00021414,2]
[401231341,1768057448062,-500.0,0.00021414,2]
[401231342,1768057448085,-500.0,0.00021414,2]
[401231343,1768057448109,-500.0,0.00021414,2]
[401231344,1768057448137,-500.0,0.00021414,2]
[401231345,1768057448161,-500.0,0.00021414,2]
[401231346,1768057448184,-500.0,0.00021414,2]
[401231347,1768057448208,-500.0,0.00021414,2]
[401231348,1768057448236,-500.0,0.00021414,2]
[401231349,1768057448259,-500.0,0.00021414,2]
[401231350,1768057448283,-500.0,0.00021414,2]
[401231351,1768057448309,-500.0,0.00021414,2]
[401231352,1768057448334,-500.0,0.00021414,2]
[401231353,1768057448358,-500.0,0.00021414,2]
[401231354,1768057448382,-500.0,0.00021414,2]
[401231355,1768057448405,-500.0,0.00021414,2]
[401231356,1768057448428,-500.0,0.00021414,2]
[401231357,1768057448451,-500.0,0.00021414,2]
[401231358,1768057448476,-500.0,0.00021414,2]
[401231359,1768057448499,-500.0,0.00021414,2]
[401231360,1768057448522,-500.0,0.00021414,2]
[401231361,1768057448545,-500.0,0.00021414,2]
[401231362,1768057448569,-500.0,0.00021414,2]
[401231363,1768057448592,-500.0,0.00021414,2]
[401231364,1768057448616,-500.0,0.00021414,2]
[401231365,1768057448640,-500.0,0.00021414,2]
[401231366,1768057448676,-500.0,0.00021414,2]
[401231367,1768057448700,-500.0,0.00021414,2]
[401231368,1768057448723,-500.0,0.00021414,2]
[401231369,1768057448746,-500.0,0.00021414,2]
[401231370,1768057448770,-500.0,0.00021414,2]
[401231371,1768057448794,-500.0,0.00021414,2]
[401231372,1768057448817,-500.0,0.00021414,2]
[401231373,1768057448839,-500.0,0.00021414,2]
[401231374,1768057448863,-500.0,0.00021414,2]
[401231375,1768057448885,-500.0,0.00021414,2]
[401231376,1768057448908,-500.0,0.00021414,2]
[401231377,1768057448930,-500.0,0.00021414,2]
[401231378,1768057448955,-500.0,0.00021414,2]
[401231379,1768057448978,-500.0,0.00021414,2]
[401231380,1768057449001,-500.0,0.00021414,2]
[401231381,1768057449025,-500.0,0.00021414,2]
[401231382,1768057449048,-500.0,0.00021414,2]
[401231383,1768057449071,-500.0,0.00021414,2]
[401231384,1768057449093,-500.0,0.00021414,2]
[401231385,1768057449115,-500.0,0.00021414,2]
[401231386,1768057449141,-500.0,0.00021414,2]
[401231387,1768057449165,-500.0,0.00021414,2]
[401231388,1768057449188,-500.0,0.00021414,2]
[401231389,1768057449213,-500.0,0.00021414,2]
[401231390,1768057449236,-500.0,0.00021414,2]
[401231391,1768057449259,-500.0,0.00021414,2]
[401231392,1768057449283,-500.0,0.00021414,2]
[401231393,1768057449306,-500.0,0.00021414,2]
[401231394,1768057449330,-500.0,0.00021414,2]
[401231395,1768057449353,-500.0,0.00021414,2]
[401231396,1768057449377,-500.0,0.00021414,2]
[401231397,1768057449399,-500.0,0.00021414,2]
[401231398,1768057449422,-500.0,0.00021414,2]
[401231399,1768057449444,-500.0,0.00021414,2]
[401231400,1768057449467,-500.0,0.00021414,2]
[401231401,1768057449489,-500.0,0.00021414,2]
[401231402,1768057449514,-500.0,0.00021414,2]
[401231403,1768057449536,-500.0,0.00021414,2]
[401231404,1768057449559,-500.0,0.00021414,2]
[401231405,1768057449580,-500.0,0.00021414,2]
[401231406,1768057449603,-500.0,0.00021414,2]
[401231407,1768057449625,-500.0,0.00021414,2]
[401231408,1768057449648,-500.0,0.00021414,2]
[401231409,1768057449671,-500.0,0.00021414,2]
[401231410,1768057449694,-500.0,0.00021414,2]
[401231411,1768057449716,-500.0,0.00021414,2]
[401231412,1768057449740,-500.0,0.00021414,2]
[401231413,1768057449764,-500.0,0.00021414,2]
[401231414,1768057449790,-500.0,0.00021414,2]
[401231415,1768057449813,-500.0,0.00021414,2]
[401231416,1768057449836,-500.0,0.00021414,2]
[401231417,1768057449858,-500.0,0.00021414,2]
[401231418,1768057449880,-213.50862121,0.00021414,2]
[401231419,1768057449903,-500.0,0.00021414,2]
[401231420,1768057449926,-500.0,0.00021414,2]
[401231421,1768057449950,-500.0,0.00021414,2]
[401231422,1768057449974,-500.0,0.00021414,2]
[401231423,1768057449996,-500.0,0.00021414,2]
[401231424,1768057450018,-538.42083763,0.00021415,2]
[401231425,1768057450045,-854.08767023,0.00021415,2]
[401231426,1768057450069,-854.08767023,0.00021415,2]
[401231427,1768057450092,-854.08767023,0.00021415,2]
[401231428,1768057450115,-854.08767023,0.00021415,2]
[401231429,1768057450140,-896.79205373,0.00021415,2]
[401231430,1768057450162,-896.79205373,0.00021415,2]
[401231431,1768057450184,-896.79205373,0.00021415,2]
[401231432,1768057450207,-896.79205373,0.00021415,2]
[401231433,1768057450232,-896.79205373,0.00021415,2]
[401231434,1768057450256,-896.79205373,0.00021415,2]
[401231435,1768057450283,-896.79205373,0.00021415,2]
[401231436,1768057450305,-896.79205373,0.00021415,2]
[401231437,1768057450327,-896.79205373,0.00021415,2]
[401231438,1768057450350,-896.79205373,0.00021415,2]
[401231439,1768057450374,-896.79205373,0.00021415,2]
[401231440,1768057450397,-896.79205373,0.00021415,2]
[401231441,1768057450420,-896.79205373,0.00021415,2]
[401231442,1768057450442,-871.68187623,0.00021415,2]
[401231443,1768057450464,-871.68187623,0.00021415,2]
[401231444,1768057450488,-871.68187623,0.00021415,2]
[401231445,1768057450619,-871.68187623,0.00021415,2]
[401231446,1768057450646,-871.68187623,0.00021415,2]
[401231447,1768057450673,-196487.02435789,0.00021416,2]
[401231453,1768057530944,155.0,8.246e-05,2]
[401231496,1768057684861,180.57,8.238e-05,14]
[401231497,1768057685141,180.57,8.238e-05,14]
[401231499,1768057688006,180.57,8.238e-05,14]
[401231602,1768057838626,-246.0,9.999e-05,2]
[401231604,1768057838647,-300.0,9.999e-05,2]
[401231605,1768057838656,-300.0,9.999e-05,2]
[401231606,1768057838666,-560.0,9.999e-05,2]
[401231607,1768057838675,-300.0,9.999e-05,2]
[401231609,1768057838686,-1200.0,9.999e-05,2]
[401231610,1768057838695,-29518.74,0.0001,2]
[401231611,1768057838705,-130000.0,0.0001,2]
[401231612,1768057838716,-300.0,0.00010199,2]
[401231613,1768057838726,-300.0,0.00010199,2]
[401231614,1768057838736,-300.0,0.00010199,2]
[401231615,1768057838747,-300.0,0.00010199,2]
[401231616,1768057838757,-300.0,0.00010199,2]
[401231617,1768057838767,-300.0,0.00010199,2]
[401231618,1768057838777,-300.0,0.00010199,2]
[401231619,1768057838787,-300.0,0.00010199,2]
[401231620,1768057838796,-300.0,0.00010199,2]
[401231621,1768057838806,-300.0,0.00010199,2]
[401231622,1768057838816,-300.0,0.00010199,2]
[401231623,1768057838826,-300.0,0.00010199,2]
[401231624,1768057838837,-300.0,0.00010199,2]
[401231625,1768057838847,-300.0,0.00010199,2]
[401231626,1768057838858,-300.0,0.00010199,2]
[401231627,1768057838868,-420.0,0.00010999,2]
[401231628,1768057838878,-400.0,0.00010999,2]
[401231629,1768057838889,-177.0,0.00011999,2]
[401231630,1768057838899,-204.0,0.00014,2]
[401231631,1768057838909,-231.0,0.00016,2]
[401231632,1768057838920,-193.30306382,0.00018,2]
[401231633,1768057838930,-1000000.0,0.00021315,2]
[401231634,1768057838940,-6287.85967402,0.00021316,2]
[401231635,1768057838950,-151.0,0.00021403,2]
[401231636,1768057838959,-158.67691951,0.00021403,2]
[401231637,1768057838968,-518.50178136,0.00021414,2]
[401231638,1768057838978,-500.0,0.00021414,2]
[401231639,1768057838988,-500.0,0.00021414,2]
[401231640,1768057838998,-500.0,0.00021414,2]
[401231641,1768057839008,-500.0,0.00021414,2]
[401231642,1768057839018,-500.0,0.00021414,2]
[401231643,1768057839028,-457.59293066,0.00021414,2]
[401231644,1768057839037,-500.0,0.00021414,2]
[401231645,1768057839047,-500.0,0.00021414,2]
[401231646,1768057839057,-510.84274104,0.00021414,2]
[401231647,1768057839067,-500.0,0.00021415,2]
[401231648,1768057839077,-151.0,0.00021416,2]
[401231649,1768057839088,-6834.71,0.000215,2]
[401231650,1768057839097,-183.65,0.000215,2]
[401231651,1768057839107,-600.0,0.00021843,10]
[401231652,1768057839118,-250.0,0.00022239,2]
[401231653,1768057839127,-268.92290975,0.00022239,2]
[401231654,1768057839136,-250.0,0.00022239,2]
[401231655,1768057839146,-250.0,0.00022239,2]
[401231656,1768057839155,-250.0,0.00022239,2]
[401231657,1768057839165,-250.0,0.00022239,2]
[401231658,1768057839175,-150.0,0.00022484,2]
[401231659,1768057839184,-500.0,0.00022502,2]
[401231660,1768057839194,-712.9,0.00022775,3]
[401231661,1768057839204,-356.46,0.00022775,3]
[401231662,1768057839214,-500.0,0.00022776,2]
[401231663,1768057839223,-319.54093411,0.0002305,2]
[401231664,1768057839233,-150.0,0.00023555,2]
[401231665,1768057839243,-720.0,0.00024028,10]
[401231666,1768057839253,-150.0,0.00024625,2]
[401231667,1768057839264,-209.0,0.00024932,15]
[401231668,1768057839275,-215.85,0.00025105,14]
[401231669,1768057839284,-174.69,0.00025105,14]
[401231670,1768057839294,-174.69,0.00025105,14]
[401231671,1768057839307,-174.69,0.00025105,14]
[401231672,1768057839317,-174.69,0.00025105,14]
[401231673,1768057839327,-174.69,0.00025105,14]
[401231674,1768057839336,-174.69,0.00025105,14]
[401231675,1768057839346,-1623.65596304,0.00025714,2]
[401231676,1768057839356,-669.90071631,0.00026233,2]
[401231677,1768057839366,-864.0,0.0002643,30]
[401231678,1768057839376,-150.0,0.00026767,2]
[401231679,1768057839386,-150.0,0.00027837,2]
[401231680,1768057839396,-1623.65596304,0.00027914,2]
[401231681,1768057839406,-250.0,0.00028046,2]
[401231682,1768057839415,-158.78,0.00028908,2]
[401231683,1768057839426,-1000.0,0.00029073,30]
[401231684,1768057839435,-181.47,0.00029979,2]
[401231685,1768057839445,-1623.65596304,0.00030114,2]
[401231686,1768057839456,-639.41420416,0.00030402,2]
[401231687,1768057839466,-157.0,0.00030959,43]
[401231688,1768057839480,-204.15,0.00031049,2]
[401231689,1768057839490,-1000.0,0.00031981,30]
[401231690,1768057839501,-244.0,0.00031981,30]
[401231691,1768057839510,-226.83,0.0003212,2]
[401231692,1768057839520,-1623.65596304,0.00032314,2]
[401231693,1768057839530,-999.0,0.00032876,120]
[401231694,1768057839539,-151.6053793,0.000332,117]
[401231695,1768057839549,-151.6053793,0.000332,117]
[401231696,1768057839558,-151.6053793,0.000332,117]
[401231697,1768057839568,-276.0,0.00033262,30]
[401231698,1768057839577,-945.0,0.00033262,30]
[401231699,1768057839587,-999.0,0.00033972,120]
[401231700,1768057839596,-1623.65596304,0.00034513,2]
[401231701,1768057839606,-999.0,0.00035068,120]
[401231702,1768057839617,-55219.8203644,0.00035163,2]
[401231703,1768057839626,-1000.0,0.00035179,30]
[401231704,1768057839637,-492.0,0.00035179,30]
[401231705,1768057839648,-532.55,0.00035616,30]
[401231706,1768057839659,-500.0,0.00035937,13]
[401231707,1768057839669,-2779.62860416,0.00035937,4]
[401231708,1768057839697,-1179.53416417,0.00035937,4]
[401231709,1768057839707,-117.5112586,0.00036,30]
[401231718,1768057845149,-500.0,0.00035937,13]
[401231719,1768057845159,-66.1387414,0.00036,30]
[401231720,1768057845168,-905.0,0.00036,30]
[401231721,1768057845178,-999.0,0.00036164,120]
[401231722,1768057845187,-500.0,0.00036424,15]
[401231723,1768057845198,-150.0,0.00036424,15]
[401231724,1768057845208,-150.0,0.00036424,15]
[401231725,1768057845218,-150.0,0.00036424,15]
[401231726,1768057845227,-150.0,0.00036424,15]
[401231727,1768057845237,-150.0,0.00036424,15]
[401231728,1768057845247,-599.38169383,0.00036561,15]
[401231729,1768057845256,-150.0,0.00036561,15]
[401231730,1768057845266,-150.0,0.00036561,15]
[401231731,1768057845276,-150.0,0.00036561,15]
[401231732,1768057845286,-150.0,0.00036561,15]
[401231733,1768057845296,-150.0,0.00036561,15]
[401231734,1768057845309,-1277.54212477,0.000366,10]
[401231736,1768057848430,-277.312261,0.00036,30]
[401231737,1768057848441,-500.0,0.00036,30]
[401231745,1768057945877,500.0,9.999e-05,2]
[401231746,1768057945919,500.0,0.00012329,2]
[401231747,1768057945964,500.0,9.999e-05,2]
[401231748,1768057946014,500.0,9.999e-05,2]
[401231749,1768057946053,500.0,9.999e-05,2]
[401231750,1768057946093,500.0,9.999e-05,2]
[401231751,1768057946134,500.0,9.999e-05,2]
[401231752,1768057946173,500.0,0.00012329,2]
[401231753,1768057946214,500.0,9.999e-05,2]
[401231754,1768057946252,500.0,0.00012329,2]
[401231755,1768057946290,500.0,9.999e-05,2]
[401231756,1768057946327,328.28147565,9.999e-05,2]
[401231757,1768057946365,500.0,9.999e-05,2]
[401231758,1768057946406,237.28802472,9.999e-05,2]
[401231759,1768057946448,500.0,9.999e-05,2]
[401231760,1768057946486,500.0,9.999e-05,2]
[401231761,1768057946527,500.0,9.999e-05,2]
[401231762,1768057946567,500.0,9.999e-05,2]
[401231763,1768057946609,500.0,9.999e-05,2]
[401231764,1768057946647,500.0,0.00012329,2]
[401231765,1768057946685,434.44049963,9.999e-05,2]
[401231766,1768057946713,65.55950037,9.999e-05,2]
[401231767,1768057946763,500.0,9.999e-05,2]
[401231768,1768057946808,500.0,9.999e-05,2]
[401231769,1768057946859,589.59520705,0.00012329,2]
[401231770,1768057946907,500.0,9.999e-05,2]
[401231771,1768057946961,500.0,9.999e-05,2]
[401231772,1768057947013,500.0,9.999e-05,2]
[401231773,1768057947056,500.0,9.999e-05,2]
[401231774,1768057947102,536.62162382,9.999e-05,2]
[401231775,1768057947146,500.0,0.00012329,2]
[401231776,1768057947189,500.0,9.999e-05,2]
[401231777,1768057947231,500.0,9.999e-05,2]
[401231778,1768057947274,500.0,9.999e-05,2]
[401231779,1768057947320,500.0,9.999e-05,2]
[401231780,1768057947371,500.0,9.999e-05,2]
[401231781,1768057947431,356.91198672,9.999e-05,2]
[401231782,1768057947479,500.0,9.999e-05,2]
[401231783,1768057947528,500.0,9.999e-05,2]
[401231784,1768057947573,500.0,9.999e-05,2]
[401231785,1768057947617,500.0,9.999e-05,2]
[401231786,1768057947663,451.32168204,9.999e-05,2]
[401231787,1768057947695,48.67831796,9.999e-05,2]
[401231788,1768057947735,500.0,0.00012329,2]
[401231789,1768057947775,500.0,9.999e-05,2]
[401231790,1768057947817,500.0,9.999e-05,2]
[401231791,1768057947861,500.0,9.999e-05,2]
[401231792,1768057947909,500.0,9.999e-05,2]
[401231793,1768057947958,500.0,0.00012329,2]
[401231794,1768057948001,500.0,9.999e-05,2]
[401231795,1768057948183,500.0,9.999e-05,2]
[401231796,1768057948222,500.0,9.999e-05,2]
[401231797,1768057948263,500.0,9.999e-05,2]
[401231798,1768057948303,500.0,9.999e-05,2]
[401231799,1768057948342,500.0,9.999e-05,2]
[401231800,1768057948384,500.0,9.999e-05,2]
[401231801,1768057948423,500.0,0.00012329,2]
[401231802,1768057948462,500.0,9.999e-05,2]
[401231803,1768057948501,500.0,9.999e-05,2]
[401231804,1768057948540,500.0,9.999e-05,2]
[401231805,1768057948580,500.0,9.999e-05,2]
[401231806,1768057948621,500.0,9.999e-05,2]
[401231807,1768057948666,451.33168204,9.9e-05,2]
[401231808,1768057948695,10000.01,9.9e-05,2]
[401231809,1768057948725,10000.01,9.9e-05,2]
[401231810,1768057948759,10000.01,9.9e-05,2]
[401231811,1768057948788,10000.01,9.9e-05,2]
[401231812,1768057948818,10000.01,9.9e-05,2]
[401231813,1768057948848,10000.01,9.9e-05,2]
[401231814,1768057948880,10000.01,9.9e-05,2]
[401231886,1768058404522,-0.01,9.042e-05,2]
[401231887,1768058404908,-0.02,9.042e-05,2]
[401231888,1768058405164,-0.04,9.042e-05,2]
[401231889,1768058405415,-0.08,9.042e-05,2]
[401231890,1768058405603,-0.16,9.042e-05,2]
[401231891,1768058405672,-0.32,9.042e-05,2]
[401231892,1768058405982,-0.64,9.042e-05,2]
[401231893,1768058406179,-1.28,9.042e-05,2]
[401231900,1768058411673,-1200.0,9.041e-05,2]
[401231901,1768058411852,-2.56,9.042e-05,2]
[401231902,1768058412105,-5.12,9.042e-05,2]
[401231903,1768058412174,-618.88,9.042e-05,2]
[401231904,1768058412326,-629.12,9.042e-05,2]
[401231905,1768058412354,-8741.77,9.042e-05,2]
[401231906,1768058412563,-547.0,9.042e-05,2]
[401231907,1768058412596,-300.0,9.896e-05,2]
[401231908,1768058412632,-300.0,9.896e-05,2]
[401231909,1768058412665,-300.0,9.896e-05,2]
[401231910,1768058412700,-300.0,9.896e-05,2]
[401231911,1768058412730,-800.10001,9.898e-05,2]
[401231912,1768058412760,-219.0,9.898e-05,2]
[401231913,1768058412792,-500.0,9.899e-05,2]
[401231914,1768058412824,-1295.06432878,9.899e-05,2]
[401231915,1768058412857,-165.64961072,9.899e-05,2]
[401231916,1768058412989,-546.382101,9.899e-05,2]
[401231917,1768058413021,-502.35173642,9.899e-05,2]
[401231918,1768058413055,-712.03171172,9.899e-05,2]
[401231919,1768058413090,-712.03171172,9.899e-05,2]
[401231920,1768058413122,-712.03171172,9.899e-05,2]
[401231921,1768058413156,-712.03171172,9.899e-05,2]
[401231922,1768058413190,-712.03171172,9.899e-05,2]
[401231923,1768058413224,-70.19349624,9.899e-05,2]
[401231924,1768058413371,-641.83821548,9.899e-05,2]
[401231925,1768058413407,-712.03171172,9.899e-05,2]
[401231926,1768058413443,-712.03171172,9.899e-05,2]
[401231927,1768058413479,-712.03171172,9.899e-05,2]
[401231928,1768058413515,-712.03171172,9.899e-05,2]
[401231929,1768058413552,-712.03171172,9.899e-05,2]
[401231930,1768058413586,-712.03171172,9.899e-05,2]
[401231931,1768058413735,-712.03171172,9.899e-05,2]
[401231932,1768058413772,-500.0,9.899e-05,2]
[401231933,1768058413808,-500.0,9.899e-05,2]
[401231934,1768058413847,-500.0,9.899e-05,2]
[401231935,1768058413877,-500.0,9.899e-05,2]